bitfinex-derivatives/quotes_ETHF0:USTF0_20250329
["timestamp","ask_amount","ask_price","bid_price","bid_amount"]
[1743231346786,4.8071,1882.6,1882.5,1.4493]
[1743231346787,5.86986,1882.6,1882.5,1.4493]
[1743231348292,1.06282,1882.5,1882.4,0.00795756]
[1743231348591,1.06293,1882.3,1882.2,3.2078]
[1743231348888,4.48993,1882.3,1882.2,3.2078]
[1743231349189,3.427,1882.3,1882.2,3.2078]
[1743231349389,4.8712,1882.3,1882.2,3.2078]
[1743231349590,4.8712,1882.3,1882.2,4.5801]
[1743231349886,5.93413,1882.3,1882.2,4.5801]
[1743231351800,6.64233,1882.3,1882.2,4.5801]
[1743231356399,1.06299,1882.2,1882.1,0.00795756]
[1743231356703,2.48809,1882.2,1882.1,0.00795756]
[1743231356896,2.48809,1882.2,1882.1,1.43325756]
[1743231357399,1.4251,1882.2,1882.1,1.43325756]
[1743231357603,1.4251,1882.2,1882.1,2.49629756]
[1743231358504,1.4251,1882.2,1882.1,1.43325756]
[1743231358705,1.4251,1882.2,1882.1,2.49629756]
[1743231360607,1.07069756,1882.7,1882.5,1.0628]
[1743231360807,1.06283,1882.5,1882.3,4.2707]
[1743231361000,1.06283,1882.5,1882.4,0.6975]
[1743231361510,1.06282,1882.5,1882.4,0.6975]
[1743231362008,2.44372,1882.5,1882.4,2.1163]
[1743231362209,1.3809,1882.5,1882.4,2.1163]
[1743231362507,2.44372,1882.5,1882.4,2.1163]
[1743231363405,1.3809,1882.5,1882.4,2.1163]
[1743231363709,2.44372,1882.5,1882.4,2.1163]
[1743231366113,1.3809,1882.5,1882.4,3.17917]
[1743231366410,3.418,1882.6,1882.5,1.06278]
[1743231366716,1.451,1882.6,1882.5,5.60718]
[1743231367506,2.51376,1882.6,1882.5,4.5444]
[1743231367812,1.451,1882.6,1882.5,5.60722]
[1743231369514,1.451,1882.6,1882.5,6.28462]
[1743231371713,1.451,1882.6,1882.5,5.60722]
[1743231373818,4.11965756,1882.7,1882.6,1.06276]
[1743231374117,6.65995756,1882.7,1882.6,1.3538]
[1743231374521,1.06276,1882.6,1882.5,3.2078]
[1743231374721,1.06299,1882.2,1882.1,9.21375756]
[1743231374923,1.06299,1882.2,1882.1,3.21575756]
[1743231375127,3.417,1882.3,1882.1,3.21575756]
[1743231375418,2.1339,1882.2,1882.1,5.74449756]
[1743231376820,1.4378,1882.2,1882.1,5.74449756]
[1743231378529,3.417,1882.3,1882.2,1.06299]
[1743231378723,4.8821,1882.3,1882.2,3.12769]
[1743231381924,1.4651,1882.3,1882.2,3.12769]
[1743231384023,1.73394,1882.5,1882.2,2.0647]
[1743231384330,5.436,1882.5,1882.4,1.06287]
[1743231384830,5.436,1882.5,1882.4,2.47817]
[1743231385124,0.00795756,1882.7,1882.6,1.06276]
[1743231385322,0.00795756,1882.7,1882.6,4.27056]
[1743231385929,1.07065756,1882.7,1882.6,3.2078]
[1743231386427,2.42655756,1882.7,1882.6,3.2078]
[1743231386826,1.36385756,1882.7,1882.6,4.27056]
[1743231387433,2.42655756,1882.7,1882.6,3.2078]
[1743231388532,1.36385756,1882.7,1882.6,3.2078]
[1743231388733,2.42655756,1882.7,1882.6,3.2078]
[1743231389433,1.4042,1882.8,1882.6,3.2078]
[1743231389434,4.49539,1883.3,1882.6,11.06331208]
[1743231389635,1.339,1882.8,1882.7,3.1539]
[1743231389929,1.3881,1883.2,1882.7,5.299]
[1743231390130,1.339,1883.1,1883.0,4.27033]
[1743231390325,4.1145,1883.2,1883.1,1.06248]
[1743231390526,4.12245756,1883.2,1883.1,3.15368]
[1743231391127,5.46145756,1883.2,1883.1,3.15368]
[1743231392336,2.02945756,1883.2,1883.1,3.15368]
[1743231392837,2.02945756,1883.2,1883.1,2.0912]
[1743231393237,2.02945756,1883.2,1883.1,3.15368]
[1743231393840,3.09187756,1883.2,1883.1,2.0912]
[1743231394042,2.02945756,1883.2,1883.1,3.15368]
[1743231395138,0.00795756,1883.2,1883.1,3.15368]
[1743231395832,1.47715756,1883.2,1883.1,3.15368]
[1743231401141,1.06248,1883.1,1883.0,3.2078]
[1743231401447,2.47528,1883.1,1883.0,3.2078]
[1743231404647,1.4128,1883.1,1883.0,3.2078]
[1743231405850,2.47528,1883.1,1883.0,3.2078]
[1743231409152,1.75388,1883.1,1883.0,3.2078]
[1743231409353,5.17288,1883.1,1883.0,3.2078]
[1743231414060,1.06253,1883.0,1882.9,1.3803]
[1743231414261,2.47783,1883.0,1882.9,4.5881]
[1743231415460,3.16443,1883.0,1882.7,0.7314]
[1743231415658,1.06274,1882.7,1882.5,4.27061]
[1743231415857,1.06274,1882.7,1882.6,1.3983]
[1743231417059,1.06276,1882.6,1882.5,3.2078]
[1743231417261,1.06287,1882.4,1882.3,3.2078]
[1743231417565,4.47685,1882.5,1882.3,4.27073]
[1743231417767,1.06287,1882.4,1882.3,4.6563]
[1743231418262,3.414,1882.5,1882.3,4.6563]
[1743231418663,4.47686,1882.5,1882.3,4.6563]
[1743231419552,1.06287,1882.4,1882.3,4.6563]
[1743231420464,1.06287,1882.4,1882.3,3.2078]
[1743231420861,1.06287,1882.4,1882.3,4.6664]
[1743231422165,4.47683,1882.5,1882.3,4.6664]
[1743231422366,3.414,1882.5,1882.3,4.6664]
[1743231422567,4.47684,1882.5,1882.4,2.1805]
[1743231425563,4.47382,1882.5,1882.4,2.1805]
[1743231425768,1.06282,1882.5,1882.4,2.1805]
[1743231427562,1.06278,1882.6,1882.4,2.1805]
[1743231427762,1.06278,1882.6,1882.5,1.4545]
[1743231428571,1.77938,1882.6,1882.5,1.4545]
[1743231430263,0.7166,1882.6,1882.3,3.2078]
[1743231430578,1.06287,1882.4,1882.3,3.2078]
[1743231431963,1.06293,1882.3,1882.2,1.3986]
[1743231432164,1.06293,1882.3,1882.2,4.6064]
[1743231433072,1.06291,1882.4,1882.2,4.6064]
[1743231433274,1.06291,1882.4,1882.3,1.4475]
[1743231436968,2.44557,1882.5,1882.3,1.4475]
[1743231437175,2.44557,1882.5,1882.3,2.5104]
[1743231437376,2.44557,1882.5,1882.4,0.6806]
[1743231437564,2.44557,1882.5,1882.4,2.0517]
[1743231438478,2.44557,1882.5,1882.4,5.2595]
[1743231444683,2.44552,1882.5,1882.4,5.2595]
[1743231446481,2.44552,1882.5,1882.2,0.688]
[1743231446482,1.06293,1882.3,1882.2,3.2078]
[1743231447182,1.06299,1882.2,1882.1,1.46585756]
[1743231447388,1.06299,1882.2,1882.1,4.67365756]
[1743231447584,2.49909,1882.2,1882.1,4.67365756]
[1743231447887,2.49909,1882.2,1882.1,3.21575756]
[1743231450588,2.49909,1882.2,1882.1,0.00795756]
[1743231450791,2.49909,1882.2,1882.1,3.21575756]
[1743231452588,2.49909,1882.2,1882.1,0.00795756]
[1743231452788,2.49909,1882.2,1882.1,3.21575756]
[1743231453585,2.49909,1882.2,1882.1,0.00795756]
[1743231453791,1.06315,1881.9,1881.8,3.2078]
[1743231454490,2.42565,1881.9,1881.8,3.2078]
[1743231454891,2.42565,1881.9,1881.8,4.5721]
[1743231455281,4.14805756,1882.0,1881.8,4.5721]
[1743231455491,6.57370756,1882.0,1881.9,1.3643]
[1743231455688,5.21120756,1882.0,1881.9,1.3643]
[1743231463594,1.06315,1881.9,1881.8,3.2078]
[1743231464185,1.77995,1881.9,1881.8,3.2078]
[1743231470296,0.00795756,1882.0,1881.9,1.06315]
[1743231470495,0.00795756,1882.0,1881.9,3.20955]
[1743231471396,0.00795756,1882.0,1881.9,2.1464]
[1743231471597,0.00795756,1882.0,1881.9,3.20955]
[1743231475303,0.00795756,1882.0,1881.9,10.04516778]
[1743231475608,1.06299,1882.2,1882.0,1.06304]
[1743231475802,1.06299,1882.2,1882.1,2.1268]
[1743231477301,5.84032756,1882.3,1882.1,3.18984]
[1743231477597,5.84032756,1882.3,1882.2,1.4386]
[1743231481804,4.77735756,1882.3,1882.2,2.50159]
[1743231482008,4.77735756,1882.3,1882.2,1.4386]
[1743231482498,5.84028756,1882.3,1882.2,1.4386]
[1743231483004,0.00795756,1882.3,1882.2,4.6464]
[1743231483505,1.39495756,1882.3,1882.2,4.6464]
[1743231484806,0.00795756,1882.3,1882.2,5.70939]
[1743231485003,0.00795756,1882.3,1882.2,6.38679]
[1743231485898,0.00795756,1882.3,1882.2,5.3238]
[1743231486104,1.06299,1882.2,1882.1,0.6882]
[1743231486304,1.78849,1882.2,1882.1,2.0956]
[1743231487803,1.0631,1882.0,1881.9,5.998]
[1743231488409,2.5447,1882.0,1881.9,5.998]
[1743231492713,2.5447,1882.0,1881.8,2.1179]
[1743231492910,2.0725,1881.9,1881.8,2.1179]
[1743231493417,3.13565,1881.9,1881.8,2.1179]
[1743231493815,2.0725,1881.9,1881.8,2.1179]
[1743231494010,2.0725,1881.9,1881.8,6.38891]
[1743231494218,1.3593,1881.9,1881.8,6.38891]
[1743231496512,2.42245,1881.9,1881.8,6.38891]
[1743231496719,1.06314,1882.0,1881.8,6.38891]
[1743231496916,2.46224,1882.0,1881.9,1.4812]
[1743231499016,1.06315,1881.9,1881.8,3.2078]
[1743231499216,2.47625,1881.9,1881.8,3.2078]
[1743231499922,1.4131,1881.9,1881.8,4.27101]
[1743231500122,1.4131,1881.9,1881.8,5.69861]
[1743231503023,2.47625,1881.9,1881.8,3.2078]
[1743231503725,2.47625,1881.9,1881.7,1.07121756]
[1743231503912,2.1427,1881.8,1881.7,2.48901756]
[1743231505934,3.20591,1881.8,1881.7,1.42575756]
[1743231506236,3.20591,1881.8,1881.7,0.00795756]
[1743231509938,2.1427,1881.8,1881.7,0.00795756]
[1743231510134,3.20591,1881.8,1881.7,1.37325756]
[1743231511339,2.1427,1881.8,1881.7,1.37325756]
[1743231511641,2.1427,1881.8,1881.7,2.43652756]
[1743231513536,3.20591,1881.8,1881.7,1.37325756]
[1743231514345,3.20591,1881.8,1881.7,2.43652756]
[1743231514346,2.1427,1881.8,1881.7,2.43652756]
[1743231514838,3.20591,1881.8,1881.7,1.37325756]
[1743231516139,3.20591,1881.8,1881.7,4.58105756]
[1743231519242,2.1427,1881.8,1881.7,5.64432756]
[1743231520548,5.19294,1882.1,1881.9,1.06311]
[1743231520741,1.4581,1882.0,1881.9,1.06311]
[1743231521039,1.4581,1882.0,1881.9,1.73311]
[1743231521639,2.5212,1882.0,1881.9,0.67]
[1743231522041,2.5212,1882.0,1881.9,5.2393]
[1743231524046,1.4581,1882.0,1881.9,6.30245]
[1743231526244,1.4581,1882.0,1881.9,3.09465]
[1743231526547,1.4581,1882.0,1881.9,6.30245]
[1743231528450,0.6802,1882.1,1882.0,1.0631]
[1743231528656,1.4395,1882.2,1882.1,1.06304]
[1743231529953,1.4395,1882.2,1882.1,2.53284]
[1743231530359,0.69035756,1882.3,1882.2,1.06299]
[1743231530542,0.00795756,1882.3,1882.2,6.41189]
[1743231530745,5.18591,1882.7,1882.4,1.06282]
[1743231530954,1.4745,1882.6,1882.4,4.27062]
[1743231531154,1.4745,1882.6,1882.5,1.4698]
[1743231531357,2.53726,1882.6,1882.5,1.4698]
[1743231531656,2.53726,1882.6,1882.5,2.53262]
[1743231531657,1.4745,1882.6,1882.5,2.53262]
[1743231531869,2.53726,1882.6,1882.5,1.4698]
[1743231533549,1.4745,1882.6,1882.5,1.4698]
[1743231533848,2.53726,1882.6,1882.5,1.4698]
[1743231534559,1.4745,1882.6,1882.5,1.4698]
[1743231535059,1.4745,1882.6,1882.5,2.53262]
[1743231535257,1.4745,1882.6,1882.5,1.4698]
[1743231535460,1.4745,1882.6,1882.5,2.53262]
[1743231536362,2.53726,1882.6,1882.5,1.4698]
[1743231537560,1.4745,1882.6,1882.5,1.4698]
[1743231538661,2.53726,1882.6,1882.5,1.4698]
[1743231539858,1.06282,1882.5,1882.4,3.2078]
[1743231540059,2.53082,1882.5,1882.4,3.2078]
[1743231550377,1.468,1882.5,1882.4,4.27067]
[1743231550777,1.468,1882.5,1882.4,4.99617]
[1743231551076,1.468,1882.5,1882.4,3.9333]
[1743231551377,1.468,1882.5,1882.4,4.99617]
[1743231551673,1.468,1882.5,1882.4,5.3436]
[1743231552377,1.468,1882.5,1882.4,6.40647]
[1743231553177,1.468,1882.5,1882.4,5.3436]
[1743231555080,1.468,1882.5,1882.4,6.40647]
[1743231557178,2.53082,1882.5,1882.4,5.3436]
[1743231557777,2.53082,1882.5,1882.4,3.2078]
[1743231557985,1.06299,1882.2,1882.1,5.998]
[1743231558181,1.0631,1882.0,1881.9,2.1658]
[1743231558884,1.0631,1882.0,1881.8,9.2058]
[1743231559081,2.0986,1881.9,1881.8,10.6552]
[1743231559282,2.0986,1881.9,1881.8,9.2058]
[1743231559880,3.16175,1881.9,1881.8,10.6552]
[1743231562384,2.0986,1881.9,1881.8,10.6552]
[1743231562679,2.0986,1881.9,1881.8,11.71841]
[1743231562877,4.47014,1882.0,1881.8,11.71841]
[1743231563075,5.92034,1882.0,1881.9,1.3712]
[1743231566686,1.06314,1882.0,1881.9,1.3712]
[1743231567576,2.46694,1882.0,1881.9,1.3712]
[1743231568085,1.0631,1882.0,1881.9,1.3712]
[1743231568484,2.4669,1882.0,1881.9,1.3712]
[1743231572587,1.4038,1882.0,1881.9,1.3712]
[1743231572787,2.4669,1882.0,1881.9,1.3712]
[1743231575585,1.4038,1882.0,1881.9,1.3712]
[1743231575775,2.4669,1882.0,1881.9,1.3712]
[1743231585299,1.4038,1882.0,1881.9,2.43435]
[1743231585491,2.4669,1882.0,1881.9,1.3712]
[1743231586595,1.06307,1882.1,1881.9,2.96633]
[1743231586810,1.3827,1882.1,1882.0,0.7389]
[1743231587099,1.3827,1882.1,1882.0,3.1512]
[1743231587299,1.3827,1882.1,1882.0,6.359]
[1743231589501,52.3088,1882.6,1882.0,13.95163]
[1743231589502,49.101,1882.6,1882.0,13.95163]
[1743231589711,2.0281,1882.4,1882.3,4.27069]
[1743231590205,3.09097,1882.4,1882.3,4.27069]
[1743231590401,3.09097,1882.4,1882.3,5.00639]
[1743231590600,3.09097,1882.4,1882.3,3.9435]
[1743231591504,3.09097,1882.4,1882.3,5.2825]
[1743231592709,3.09097,1882.4,1882.3,3.2078]
[1743231596213,3.09097,1882.4,1882.2,2.45955]
[1743231596511,1.471,1882.3,1882.2,2.45955]
[1743231596709,1.471,1882.3,1882.2,5.66735]
[1743231598414,1.471,1882.3,1882.2,4.6044]
[1743231599015,2.53393,1882.3,1882.2,4.6044]
[1743231600314,1.471,1882.3,1882.2,5.66739]
[1743231601114,2.53393,1882.3,1882.2,5.66739]
[1743231601818,2.53393,1882.3,1882.2,4.6044]
[1743231602116,2.53393,1882.3,1882.2,5.66739]
[1743231603710,1.471,1882.3,1882.2,5.66739]
[1743231604117,2.53393,1882.3,1882.2,5.66739]
[1743231604419,2.53393,1882.3,1882.2,4.6044]
[1743231604911,1.471,1882.3,1882.2,5.66739]
[1743231605618,0.6798,1882.4,1882.3,1.06293]
[1743231605814,1.4479,1882.5,1882.4,1.06287]
[1743231606116,1.4479,1882.5,1882.4,4.96187]
[1743231606512,2.51072,1882.5,1882.4,3.2078]
[1743231606717,3.19172,1882.5,1882.4,3.2078]
[1743231606909,1.06293,1882.3,1882.2,3.899]
[1743231607110,1.06299,1882.2,1882.1,1.9092]
[1743231607319,2.51089,1882.2,1882.1,1.9092]
[1743231607506,1.4479,1882.2,1882.1,6.18004]
[1743231607920,0.681,1882.5,1882.1,5.117]
[1743231608219,2.51077,1882.4,1882.3,3.2078]
[1743231610318,2.51077,1882.4,1882.3,4.665]
[1743231610620,2.51077,1882.4,1882.3,5.3763]
[1743231611025,1.4479,1882.4,1882.3,5.3763]
[1743231611321,2.51077,1882.4,1882.3,6.43923]
[1743231611522,2.51077,1882.4,1882.3,5.3763]
[1743231612724,2.51077,1882.4,1882.3,6.43923]
[1743231613020,2.51077,1882.4,1882.3,5.3763]
[1743231614622,1.4479,1882.4,1882.2,1.06298]
[1743231614819,2.0325,1882.3,1882.2,2.39838]
[1743231616124,2.0325,1882.3,1882.2,2.93038]
[1743231621030,2.0325,1882.3,1882.2,6.13818]
[1743231623827,0.00795756,1882.7,1882.6,1.06276]
[1743231624028,4.47569756,1882.7,1882.5,1.06278]
[1743231624230,1.4315,1882.6,1882.5,3.17108]
[1743231624734,2.49426,1882.6,1882.5,2.1083]
[1743231625237,2.49426,1882.6,1882.5,0.7394]
[1743231625435,2.49426,1882.6,1882.4,4.27063]
[1743231625737,2.1405,1882.5,1882.4,4.27063]
[1743231625934,2.1405,1882.5,1882.4,5.63953]
[1743231627037,3.20332,1882.5,1882.4,3.2078]
[1743231627237,1.06293,1882.3,1882.2,1.59497]
[1743231627432,1.06299,1882.2,1882.1,3.7398]
[1743231627638,1.77829,1882.2,1882.0,7.9512]
[1743231627823,2.0148,1882.1,1882.0,1.9532]
[1743231628224,2.0148,1882.1,1882.0,3.01626]
[1743231630238,1.3414,1882.1,1882.0,3.01626]
[1743231630439,0.6986,1882.3,1882.2,1.06299]
[1743231630738,2.0414,1882.3,1882.1,5.7402]
[1743231631237,1.3428,1882.2,1882.1,5.7402]
[1743231631638,2.40579,1882.2,1882.1,5.7402]
[1743231632640,1.3428,1882.2,1882.1,5.7402]
[1743231633840,2.40579,1882.2,1882.1,5.7402]
[1743231634042,2.40579,1882.2,1882.1,5.74024]
[1743231635739,1.3428,1882.2,1882.1,5.74024]
[1743231636134,0.6986,1882.3,1882.2,1.06299]
[1743231636339,2.113,1882.3,1882.2,3.65949]
[1743231636540,1.4144,1882.3,1882.2,3.65949]
[1743231637534,0.6824,1882.4,1882.3,1.06293]
[1743231637736,2.0968,1882.4,1882.3,5.65893]
[1743231638640,3.15967,1882.4,1882.3,5.65893]
[1743231638840,2.0968,1882.4,1882.3,5.65893]
[1743231639644,3.15967,1882.4,1882.3,5.65893]
[1743231639941,2.0968,1882.4,1882.3,5.65893]
[1743231640446,3.15967,1882.4,1882.3,4.596]
[1743231640739,3.15967,1882.4,1882.3,3.2078]
[1743231641139,2.0968,1882.4,1882.1,3.2078]
[1743231641343,1.06299,1882.2,1882.1,3.2078]
[1743231642145,2.51679,1882.2,1882.1,3.2078]
[1743231644443,1.4538,1882.2,1882.1,4.27084]
[1743231644646,2.51679,1882.2,1882.1,4.27084]
[1743231645147,2.51679,1882.2,1882.1,3.2078]
[1743231646143,2.51679,1882.2,1882.1,4.27084]
[1743231646544,1.4538,1882.2,1882.1,4.27084]
[1743231646746,1.4538,1882.2,1882.1,5.74894]
[1743231648145,2.51679,1882.2,1882.1,5.74894]
[1743231649750,1.4538,1882.2,1882.1,5.74894]
[1743231650248,2.51679,1882.2,1882.1,5.74894]
[1743231652247,2.51679,1882.2,1882.1,4.6859]
[1743231652546,2.51679,1882.2,1882.1,3.2078]
[1743231653743,2.51679,1882.2,1882.1,4.27084]
[1743231653938,2.51679,1882.2,1882.1,5.69024]
[1743231654243,1.4538,1882.2,1882.1,5.69024]
[1743231655450,1.4538,1882.2,1882.1,2.48244]
[1743231655664,1.4538,1882.2,1882.1,5.69024]
[1743231656767,0.6824,1882.4,1882.3,1.06293]
[1743231657167,2.1321,1882.4,1882.2,3.22414]
[1743231657367,3.19497,1882.4,1882.3,1.3886]
[1743231657567,1.74527,1882.4,1882.3,1.3886]
[1743231659370,1.06293,1882.3,1882.2,0.7039]
[1743231659762,1.06293,1882.3,1882.2,1.76689]
[1743231659962,1.06293,1882.3,1882.2,0.7039]
[1743231660268,0.6824,1882.4,1882.1,4.5964]
[1743231660269,1.06299,1882.2,1882.1,4.5964]
[1743231661373,1.06299,1882.2,1882.1,3.2078]
[1743231661762,0.6824,1882.4,1882.1,4.27082]
[1743231661959,1.06298,1882.3,1882.1,4.27082]
[1743231662163,1.06299,1882.2,1882.1,4.6345]
[1743231662668,1.06299,1882.2,1882.1,5.69754]
[1743231662969,1.06299,1882.2,1882.1,4.6345]
[1743231663268,1.06299,1882.2,1882.1,5.69754]
[1743231663472,1.06299,1882.2,1882.1,4.6345]
[1743231663971,1.06299,1882.2,1882.1,5.69754]
[1743231664173,0.6824,1882.4,1882.1,5.69754]
[1743231664363,1.06293,1882.3,1882.1,5.69754]
[1743231664561,1.06299,1882.2,1882.1,4.6345]
[1743231666369,1.06299,1882.2,1882.1,5.69754]
[1743231666876,1.06299,1882.2,1882.1,4.6345]
[1743231667374,1.06299,1882.2,1882.1,5.69754]
[1743231667774,1.06297,1882.3,1882.1,5.69754]
[1743231668575,1.06297,1882.3,1882.1,2.48974]
[1743231668766,1.06297,1882.3,1882.1,5.69754]
[1743231669073,1.06299,1882.2,1882.1,4.6345]
[1743231669269,1.0631,1882.0,1881.9,0.7307]
[1743231669476,1.0631,1882.0,1881.9,5.4122]
[1743231669672,1.0631,1882.0,1881.9,3.2078]
[1743231669875,1.06321,1881.8,1881.7,0.00795756]
[1743231670774,1.76611,1881.8,1881.7,0.00795756]
[1743231671669,1.76611,1881.8,1881.7,1.48165756]
[1743231672873,3.21575756,1882.7,1881.8,2.65804]
[1743231673073,3.21575756,1882.7,1882.3,1.0629]
[1743231673074,1.06285,1882.5,1882.3,1.0629]
[1743231673267,1.06288,1882.4,1882.2,2.1279]
[1743231673575,1.06288,1882.4,1882.3,1.449]
[1743231674172,4.8528,1882.6,1882.3,1.449]
[1743231674561,1.06286,1882.5,1882.3,1.449]
[1743231674768,1.06286,1882.5,1882.3,2.51191]
[1743231674977,1.06286,1882.5,1882.4,1.449]
[1743231675273,1.3991,1882.5,1882.4,1.449]
[1743231675575,2.46192,1882.5,1882.4,1.449]
[1743231681479,0.7157,1882.6,1882.4,4.6568]
[1743231681774,1.4057,1882.6,1882.5,1.06282]
[1743231681981,1.4057,1882.6,1882.5,9.97135499]
[1743231683883,0.00795756,1882.7,1882.6,1.06276]
[1743231684078,0.00795756,1882.7,1882.6,6.30466]
[1743231684479,0.00795756,1882.7,1882.6,5.63176]
[1743231684776,1.46345756,1882.7,1882.6,5.63176]
[1743231685082,2.52615756,1882.7,1882.6,4.569]
[1743231686476,1.46345756,1882.7,1882.6,5.63176]
[1743231686682,0.00795756,1882.7,1882.6,5.63176]
[1743231686987,0.00795756,1882.7,1882.6,12.40467752]
[1743231688083,1.06276,1882.6,1882.5,0.7073]
[1743231688382,0.00795756,1882.7,1882.6,1.06276]
[1743231688681,1.07065756,1882.7,1882.6,1.06276]
[1743231688985,1.06276,1882.6,1882.5,1.77008]
[1743231689379,2.40216,1882.6,1882.5,3.12358]
[1743231689987,1.3394,1882.6,1882.5,3.12358]
[1743231692487,0.69655756,1882.7,1882.6,1.06276]
[1743231692689,2.04295756,1882.7,1882.6,5.67006]
[1743231693087,1.35435756,1882.7,1882.6,5.67006]
[1743231694394,2.41705756,1882.7,1882.6,5.67006]
[1743231694594,1.35435756,1882.7,1882.6,5.67006]
[1743231696786,1.35435756,1882.7,1882.6,6.20126]
[1743231696991,1.35435756,1882.7,1882.6,5.67006]
[1743231697481,1.35435756,1882.7,1882.6,6.20126]
[1743231697989,1.35435756,1882.7,1882.6,5.67006]
[1743231698186,1.35435756,1882.7,1882.6,6.20126]
[1743231698388,1.35435756,1882.7,1882.6,5.67006]
[1743231698889,1.35435756,1882.7,1882.6,6.20126]
[1743231699091,1.35435756,1882.7,1882.6,5.67006]
[1743231699486,2.41705756,1882.7,1882.6,4.6073]
[1743231699694,2.41705756,1882.7,1882.6,5.67006]
[1743231699995,1.35435756,1882.7,1882.6,6.20126]
[1743231702596,0.00795756,1882.7,1882.6,6.20126]
[1743231702987,1.35145756,1882.7,1882.6,6.20126]
[1743231705499,1.35145756,1882.7,1882.6,4.27056]
[1743231705698,1.35145756,1882.7,1882.6,4.80176]
[1743231705913,2.04715756,1882.7,1882.6,4.27056]
[1743231706090,2.04715756,1882.7,1882.6,4.80176]
[1743231706297,2.04715756,1882.7,1882.6,4.27056]
[1743231706496,2.04715756,1882.7,1882.6,5.74316]
[1743231707692,3.10985756,1882.7,1882.6,5.74316]
[1743231707894,3.10985756,1882.7,1882.4,9.9322]
[1743231707895,1.06282,1882.5,1882.4,9.2058]
[1743231708395,1.06282,1882.5,1882.4,9.7378]
[1743231708593,2.47652,1882.5,1882.4,9.7378]
[1743231708792,2.47652,1882.5,1882.4,3.2078]
[1743231709093,1.06301,1882.2,1882.1,0.532]
[1743231709297,1.06301,1882.2,1882.0,6.19366]
[1743231709499,2.1527,1882.1,1882.0,6.19366]
[1743231710499,1.4349,1882.1,1882.0,6.19366]
[1743231713404,0.7274,1882.4,1882.0,6.19366]
[1743231713405,0.7274,1882.4,1882.0,5.1306]
[1743231713701,1.3512,1882.3,1882.2,4.27079]
[1743231713904,1.3512,1882.3,1882.2,4.95009]
[1743231714708,2.41413,1882.3,1882.2,3.2078]
[1743231716003,2.41413,1882.3,1882.2,4.27079]
[1743231716202,1.3512,1882.3,1882.2,4.27079]
[1743231716604,1.3512,1882.3,1882.2,4.80279]
[1743231717003,1.3512,1882.3,1882.2,6.22549]
[1743231721203,2.41413,1882.3,1882.2,3.2078]
[1743231722204,1.3512,1882.3,1882.2,4.27079]
[1743231722600,2.41413,1882.3,1882.2,4.27079]
[1743231723310,2.41413,1882.3,1882.2,5.64079]
[1743231726305,2.41413,1882.3,1882.2,4.5778]
[1743231726510,2.41413,1882.3,1882.2,3.2078]
[1743231732316,2.41413,1882.3,1882.2,5.62109]
[1743231733116,1.3512,1882.3,1882.2,4.5581]
[1743231733417,0.6712,1882.5,1882.4,1.06287]
[1743231733715,0.6712,1882.5,1882.4,4.27067]
[1743231734112,0.00795756,1882.7,1882.6,1.06276]
[1743231734312,0.00795756,1882.7,1882.6,4.27056]
[1743231734515,0.00795756,1882.7,1882.6,5.00696]
[1743231734815,0.00795756,1882.7,1882.6,6.35456]
[1743231735514,1.42625756,1882.7,1882.6,6.35456]
[1743231736113,1.42625756,1882.7,1882.6,6.88576]
[1743231744114,0.00795756,1882.7,1882.6,6.88576]
[1743231744318,50.51,1883.0,1882.9,1.06259]
[1743231744518,49.7718,1883.0,1882.9,4.27039]
[1743231744718,0.6818,1883.0,1882.9,4.27039]
[1743231745018,1.74433,1883.0,1882.9,4.27039]
[1743231746027,1.74433,1883.0,1882.9,3.2078]
[1743231746526,1.74433,1883.0,1882.9,4.27039]
[1743231746823,1.74433,1883.0,1882.9,3.2078]
[1743231747420,1.06259,1882.9,1882.8,0.00795756]
[1743231747621,1.77089,1882.9,1882.8,0.00795756]
[1743231747822,1.0627,1882.7,1882.6,3.2078]
[1743231748218,4.46468,1882.8,1882.6,4.27056]
[1743231748419,4.46468,1882.8,1882.7,1.0627]
[1743231748823,3.402,1882.8,1882.7,1.0627]
[1743231749023,4.46467,1882.8,1882.6,4.27847756]
[1743231750722,4.46467,1882.8,1882.7,1.0627]
[1743231750923,4.46467,1882.8,1882.7,2.3993]
[1743231751126,5.15017,1882.8,1882.7,1.3366]
[1743231751620,5.15017,1882.8,1882.7,2.3993]
[1743231752325,5.15017,1882.8,1882.7,1.3366]
[1743231753728,4.0875,1882.8,1882.7,2.3993]
[1743231754425,5.15015,1882.8,1882.7,1.3366]
[1743231754623,5.15015,1882.8,1882.7,2.3993]
[1743231755320,6.50905,1882.8,1882.7,2.3993]
[1743231755521,5.4464,1882.8,1882.7,2.3993]
[1743231755827,6.50905,1882.8,1882.7,2.3993]
[1743231756222,5.4464,1882.8,1882.7,2.3993]
[1743231757223,5.4464,1882.8,1882.7,1.3366]
[1743231757425,1.0627,1882.7,1882.6,3.21575756]
[1743231757728,7.22348,1882.7,1882.2,3.2078]
[1743231757917,1.06293,1882.3,1882.2,3.2078]
[1743231758629,2.44193,1882.3,1882.2,3.2078]
[1743231761229,3.13303,1882.3,1882.2,3.2078]
[1743231765030,0.7406,1882.5,1882.2,4.27079]
[1743231765231,4.7739,1882.5,1882.4,4.27067]
[1743231765428,1.3719,1882.5,1882.4,4.27067]
[1743231765632,2.43472,1882.5,1882.4,0.6986]
[1743231766030,1.3719,1882.5,1882.4,3.21677]
[1743231766537,1.3719,1882.5,1882.4,6.42457]
[1743231766928,1.3719,1882.5,1882.4,5.3617]